fUST/lending_fUST_20250827
["ID","MTS","AMOUNT","RATE_DAILY","PERIOD"]
[381476744,1756230653151,-714.26,0.00041095,120]
[381476746,1756230653162,-487.84,0.00041095,120]
[381476748,1756230653172,-480.0,0.00041095,120]
[381476750,1756230653182,-480.0,0.00041095,120]
[381476752,1756230653191,-654.72,0.00041095,120]
[381476754,1756230653201,-480.0,0.00041095,120]
[381476756,1756230653211,-480.0,0.00041095,120]
[381476758,1756230653221,-480.0,0.00041095,120]
[381476760,1756230653231,-480.0,0.00041095,120]
[381476762,1756230653242,-480.0,0.00041095,120]
[381476765,1756230653252,-480.0,0.00041095,120]
[381476767,1756230653262,-426.98686809,0.00041095,120]
[381476769,1756230653273,-480.0,0.00041095,120]
[381476771,1756230653284,-510.73,0.00041095,120]
[381476773,1756230653294,-480.0,0.00041095,120]
[381476775,1756230653304,-229.44481072,0.00041095,120]
[381476777,1756230653314,-480.0,0.00041095,120]
[381476779,1756230653324,-480.0,0.00041095,120]
[381476781,1756230653333,-908.22,0.00041095,120]
[381476783,1756230653343,-480.0,0.00041095,120]
[381476785,1756230653354,-480.0,0.00041095,120]
[381476787,1756230653365,-499.35,0.00041095,120]
[381476789,1756230653375,-480.0,0.00041095,120]
[381476791,1756230653386,-723.98,0.00041095,120]
[381476793,1756230653396,-480.0,0.00041095,120]
[381476795,1756230653407,-480.0,0.00041095,120]
[381476797,1756230653418,-527.37,0.00041095,120]
[381476799,1756230653429,-480.0,0.00041095,120]
[381476801,1756230653439,-480.0,0.00041095,120]
[381476803,1756230653449,-480.0,0.00041095,120]
[381476805,1756230653458,-2000.92,0.00041095,120]
[381476807,1756230653468,-480.0,0.00041095,120]
[381476809,1756230653478,-480.0,0.00041095,120]
[381476811,1756230653488,-480.0,0.00041095,120]
[381476813,1756230653497,-480.0,0.00041095,120]
[381476815,1756230653508,-500.82,0.00041095,120]
[381476817,1756230653517,-5574.94,0.00041095,120]
[381476819,1756230653527,-461.19294217,0.00041095,120]
[381476821,1756230653536,-480.0,0.00041095,120]
[381476823,1756230653546,-480.0,0.00041095,120]
[381476825,1756230653556,-480.0,0.00041095,120]
[381476827,1756230653565,-480.0,0.00041095,120]
[381476829,1756230653575,-480.0,0.00041095,120]
[381476831,1756230653585,-517.3,0.00041095,120]
[381476833,1756230653595,-1397.74,0.00041095,120]
[381476835,1756230653604,-480.92870144,0.00041095,120]
[381476837,1756230653614,-480.0,0.00041095,120]
[381476839,1756230653624,-480.0,0.00041095,120]
[381476841,1756230653635,-480.0,0.00041095,120]
[381476843,1756230653646,-480.0,0.00041095,120]
[381476845,1756230653656,-480.0,0.00041095,120]
[381476847,1756230653667,-480.0,0.00041095,120]
[381476849,1756230653678,-279.95004961,0.00041095,120]
[381476851,1756230653688,-500.0,0.00041095,120]
[381476853,1756230653697,-500.0,0.00041095,120]
[381476855,1756230653707,-1603.07,0.00041095,120]
[381476858,1756230653720,-500.0,0.00041095,120]
[381476860,1756230653731,-500.0,0.00041095,120]
[381476862,1756230653742,-500.0,0.00041095,120]
[381476864,1756230653751,-520.18,0.00041095,120]
[381476866,1756230653761,-500.0,0.00041095,120]
[381476868,1756230653772,-500.0,0.00041095,120]
[381476870,1756230653781,-552.37,0.00041095,120]
[381476872,1756230653791,-500.0,0.00041095,120]
[381476874,1756230653800,-500.0,0.00041095,120]
[381476876,1756230653811,-1041.19,0.00041095,120]
[381476878,1756230653821,-500.0,0.00041095,120]
[381476880,1756230653831,-506.18,0.00041095,7]
[381476882,1756230653840,-270.28348238,0.00041095,120]
[381476884,1756230653850,-480.0,0.00041095,120]
[381476886,1756230653860,-480.0,0.00041095,120]
[381476888,1756230653870,-571.03,0.00041095,120]
[381476890,1756230653880,-480.0,0.00041095,120]
[381476892,1756230653889,-480.0,0.00041095,120]
[381476894,1756230653899,-480.0,0.00041095,120]
[381476896,1756230653910,-480.0,0.00041095,120]
[381476898,1756230653919,-480.0,0.00041095,120]
[381476900,1756230653929,-480.0,0.00041095,120]
[381476902,1756230653938,-512.27,0.00041095,120]
[381476904,1756230653948,-480.0,0.00041095,120]
[381476906,1756230653958,-480.0,0.00041095,120]
[381476908,1756230653968,-480.0,0.00041095,120]
[381476910,1756230653978,-480.0,0.00041095,120]
[381476912,1756230653987,-437.87619035,0.00041095,120]
[381476914,1756230653997,-1088.69,0.00041095,120]
[381476916,1756230654007,-480.0,0.00041095,120]
[381476918,1756230654017,-481.1773647,0.00041095,120]
[381476920,1756230654027,-480.0,0.00041095,120]
[381476922,1756230654037,-480.0,0.00041095,120]
[381476924,1756230654047,-480.0,0.00041095,120]
[381476926,1756230654057,-480.0,0.00041095,120]
[381476928,1756230654067,-480.0,0.00041095,120]
[381476930,1756230654077,-480.0,0.00041095,120]
[381476932,1756230654087,-510.33348899,0.00041095,120]
[381476934,1756230654098,-790.97,0.00041095,120]
[381476936,1756230654107,-480.0,0.00041095,120]
[381476938,1756230654117,-1195.53,0.00041095,120]
[381476941,1756230654128,-631.48,0.00041095,120]
[381476942,1756230654138,-480.76678933,0.00041095,120]
[381476945,1756230654148,-480.0,0.00041095,120]
[381476947,1756230654158,-480.0,0.00041095,120]
[381476949,1756230654169,-480.0,0.00041095,120]
[381476951,1756230654179,-480.96569102,0.00041095,120]
[381476953,1756230654189,-973.41,0.00041095,120]
[381476955,1756230654199,-480.0,0.00041095,120]
[381476957,1756230654208,-480.0,0.00041095,120]
[381476959,1756230654218,-480.0,0.00041095,120]
[381476961,1756230654228,-493.85,0.00041095,120]
[381476963,1756230654238,-480.0,0.00041095,120]
[381476965,1756230654248,-480.0,0.00041095,120]
[381476967,1756230654258,-480.0,0.00041095,120]
[381476969,1756230654268,-480.0,0.00041095,120]
[381476971,1756230654278,-480.0,0.00041095,120]
[381476973,1756230654288,-204.1648536,0.00041095,120]
[381476975,1756230654299,-506.36,0.00041095,120]
[381476977,1756230654309,-480.0,0.00041095,120]
[381476979,1756230654323,-480.0,0.00041095,120]
[381476981,1756230654333,-480.0,0.00041095,120]
[381476983,1756230654344,-1604.45,0.00041095,120]
[381476985,1756230654354,-480.0,0.00041095,120]
[381476987,1756230654364,-480.0,0.00041095,120]
[381476989,1756230654374,-480.0,0.00041095,120]
[381476991,1756230654384,-1335.68,0.00041095,120]
[381476993,1756230654394,-650.17,0.00041095,120]
[381476995,1756230654404,-480.0,0.00041095,120]
[381476997,1756230654415,-480.0,0.00041095,120]
[381476999,1756230654424,-480.0,0.00041095,120]
[381477001,1756230654434,-480.88,0.00041095,120]
[381477003,1756230654444,-480.0,0.00041095,120]
[381477006,1756230654458,-771.57,0.00041095,120]
[381477008,1756230654468,-483.46,0.00041095,120]
[381477010,1756230654478,-526.36,0.00041095,20]
[381477012,1756230654489,-2044.86,0.00041095,120]
[381477014,1756230654499,-480.0,0.00041095,120]
[381477016,1756230654509,-483.75,0.00041095,120]
[381477018,1756230654519,-842.69,0.00041095,120]
[381477020,1756230654530,-480.0,0.00041095,120]
[381477022,1756230654540,-553.11,0.00041095,120]
[381477024,1756230654551,-480.0,0.00041095,120]
[381477026,1756230654560,-535.73,0.00041095,120]
[381477029,1756230654572,-1142.93,0.00041095,120]
[381477031,1756230654584,-480.0,0.00041095,120]
[381477033,1756230654595,-749.44,0.00041095,120]
[381477035,1756230654605,-510.98,0.00041095,120]
[381477037,1756230654615,-480.4011089,0.00041095,120]
[381477039,1756230654625,-564.53,0.00041095,120]
[381477041,1756230654636,-480.0,0.00041095,120]
[381477043,1756230654648,-460.87732208,0.00041095,120]
[381477045,1756230654658,-562.01,0.00041095,120]
[381477047,1756230654669,-565.76,0.00041095,120]
[381477048,1756230654679,-480.0,0.00041095,120]
[381477049,1756230654688,-480.0,0.00041095,120]
[381477050,1756230654698,-1115.31,0.00041095,120]
[381477051,1756230654708,-524.58,0.00041095,120]
[381477052,1756230654719,-973.46,0.00041095,120]
[381477053,1756230654731,-480.44685785,0.00041095,120]
[381477054,1756230654741,-480.0,0.00041095,120]
[381477055,1756230654751,-480.0,0.00041095,120]
[381477056,1756230654762,-1566.95,0.00041095,30]
[381477057,1756230654772,-480.0,0.00041095,120]
[381477058,1756230654782,-480.0,0.00041095,120]
[381477059,1756230654792,-1061.17,0.00041095,120]
[381477061,1756230654804,-480.0,0.00041095,120]
[381477063,1756230654815,-480.0,0.00041095,120]
[381477065,1756230654826,-555.73,0.00041095,120]
[381477067,1756230654836,-480.0,0.00041095,120]
[381477069,1756230654847,-480.0,0.00041095,120]
[381477072,1756230654858,-480.0,0.00041095,120]
[381477091,1756230655045,-1006.37,0.00041095,120]
[381477093,1756230655056,-480.0,0.00041095,120]
[381477095,1756230655066,-480.0,0.00041095,120]
[381477097,1756230655075,-480.0,0.00041095,120]
[381477099,1756230655085,-480.0,0.00041095,120]
[381477102,1756230655096,-505.51,0.00041095,120]
[381477104,1756230655105,-480.0,0.00041095,120]
[381477106,1756230655115,-480.0,0.00041095,120]
[381477108,1756230655125,-480.0,0.00041095,120]
[381477110,1756230655135,-480.0,0.00041095,120]
[381477112,1756230655144,-480.0,0.00041095,120]
[381477114,1756230655154,-480.0,0.00041095,120]
[381477116,1756230655165,-2168.31,0.00041095,120]
[381477118,1756230655175,-480.0,0.00041095,120]
[381477120,1756230655185,-480.0,0.00041095,120]
[381477122,1756230655196,-480.0,0.00041095,120]
[381477124,1756230655206,-480.0,0.00041095,120]
[381477126,1756230655215,-480.0,0.00041095,120]
[381477128,1756230655225,-480.0,0.00041095,120]
[381477130,1756230655235,-480.0,0.00041095,120]
[381477132,1756230655245,-480.0,0.00041095,120]
[381477135,1756230655255,-480.0,0.00041095,120]
[381477136,1756230655264,-480.0,0.00041095,30]
[381477138,1756230655274,-480.0,0.00041095,120]
[381477141,1756230655284,-480.0,0.00041095,120]
[381477142,1756230655294,-480.0,0.00041095,120]
[381477144,1756230655304,-225.97,0.00041095,120]
[381477146,1756230655315,-480.0,0.00041095,120]
[381477148,1756230655326,-1442.32,0.00041095,120]
[381477151,1756230655337,-480.0,0.00041095,120]
[381477153,1756230655346,-480.0,0.00041095,120]
[381477154,1756230655357,-480.0,0.00041095,120]
[381477156,1756230655368,-480.0,0.00041095,120]
[381477158,1756230655379,-480.0,0.00041095,120]
[381477160,1756230655389,-493.94,0.00041095,120]
[381477162,1756230655399,-480.0,0.00041095,120]
[381477164,1756230655408,-481.58930038,0.00041095,120]
[381477166,1756230655419,-480.0,0.00041095,120]
[381477169,1756230655430,-480.0,0.00041095,120]
[381477171,1756230655441,-480.0,0.00041095,120]
[381477173,1756230655451,-480.95009214,0.00041095,120]
[381477175,1756230655460,-1001.37,0.00041095,120]
[381477177,1756230655471,-1053.97,0.00041095,120]
[381477179,1756230655481,-480.0,0.00041095,120]
[381477181,1756230655490,-585.88,0.00041095,120]
[381477183,1756230655500,-480.0,0.00041095,120]
[381477185,1756230655510,-480.0,0.00041095,120]
[381477187,1756230655521,-480.0,0.00041095,120]
[381477189,1756230655531,-641.58,0.00041095,120]
[381477191,1756230655541,-640.23,0.00041095,120]
[381477193,1756230655550,-483.17,0.00041095,120]
[381477195,1756230655560,-537.64,0.00041095,120]
[381477197,1756230655570,-480.0,0.00041095,120]
[381477199,1756230655579,-3013.43,0.00041095,120]
[381477201,1756230655589,-480.0,0.00041095,120]
[381477203,1756230655599,-622.26,0.00041095,120]
[381477205,1756230655608,-480.0,0.00041095,120]
[381477207,1756230655618,-480.0,0.00041095,120]
[381477209,1756230655628,-489.41,0.00041095,120]
[381477211,1756230655640,-460.72099865,0.00041095,120]
[381477213,1756230655650,-480.0,0.00041095,120]
[381477215,1756230655660,-911.01,0.00041095,120]
[381477217,1756230655670,-480.0,0.00041095,120]
[381477219,1756230655679,-480.0,0.00041095,120]
[381477221,1756230655690,-596.55,0.00041095,120]
[381477223,1756230655700,-480.0,0.00041095,120]
[381477225,1756230655710,-480.0,0.00041095,120]
[381477227,1756230655720,-480.0,0.00041095,120]
[381477229,1756230655730,-1120.95,0.00041095,120]
[381477231,1756230655739,-480.0,0.00041095,120]
[381477233,1756230655749,-480.0,0.00041095,120]
[381477235,1756230655760,-480.0,0.00041095,120]
[381477237,1756230655769,-480.0,0.00041095,120]
[381477239,1756230655779,-480.0,0.00041095,120]
[381477241,1756230655789,-480.0,0.00041095,120]
[381477243,1756230655798,-480.0,0.00041095,120]
[381477245,1756230655809,-480.0,0.00041095,120]
[381477247,1756230655818,-510.36,0.00041095,120]
[381477249,1756230655828,-480.0,0.00041095,120]
[381477251,1756230655839,-480.0,0.00041095,120]
[381477253,1756230655848,-480.94516744,0.00041095,120]
[381477255,1756230655858,-2063.96,0.00041095,120]
[381477257,1756230655868,-480.0,0.00041095,120]
[381477259,1756230655878,-480.0,0.00041095,120]
[381477261,1756230655888,-480.0,0.00041095,120]
[381477263,1756230655898,-1464.28,0.00041095,120]
[381477265,1756230655908,-480.35943131,0.00041095,120]
[381477267,1756230655919,-543.15,0.00041095,120]
[381477269,1756230655929,-480.0,0.00041095,120]
[381477271,1756230655940,-480.0,0.00041095,120]
[381477273,1756230655950,-480.0,0.00041095,120]
[381477275,1756230655960,-480.0,0.00041095,120]
[381477278,1756230655970,-480.0,0.00041095,120]
[381477280,1756230655982,-675.58,0.00041095,120]
[381477282,1756230655992,-304.11952601,0.00041095,120]
[381477284,1756230656001,-524.55,0.00041095,120]
[381477286,1756230656011,-500.0,0.00041095,120]
[381477288,1756230656020,-783.24,0.00041095,120]
[381477290,1756230656030,-496.91,0.00041095,120]
[381477292,1756230656041,-1581.11,0.00041095,120]
[381477294,1756230656051,-480.0,0.00041095,120]
[381477296,1756230656061,-542.7,0.00041095,120]
[381477298,1756230656071,-609.68,0.00041095,120]
[381477300,1756230656081,-480.0,0.00041095,120]
[381477302,1756230656092,-480.0,0.00041095,120]
[381477304,1756230656102,-524.29,0.00041095,120]
[381477306,1756230656112,-510.4,0.00041095,120]
[381477308,1756230656121,-480.95006938,0.00041095,120]
[381477310,1756230656131,-480.0,0.00041095,120]
[381477312,1756230656141,-480.0,0.00041095,2]
[381477314,1756230656150,-488.17,0.00041095,120]
[381477316,1756230656160,-480.0,0.00041095,120]
[381477318,1756230656170,-480.0,0.00041095,120]
[381477321,1756230656180,-480.0,0.00041095,120]
[381477323,1756230656190,-537.91,0.00041095,120]
[381477325,1756230656199,-554.26,0.00041095,120]
[381477327,1756230656210,-480.0,0.00041095,120]
[381477329,1756230656219,-480.0,0.00041095,120]
[381477331,1756230656229,-480.48454718,0.00041095,120]
[381477333,1756230656238,-480.0,0.00041095,120]
[381477335,1756230656249,-512.35,0.00041095,120]
[381477337,1756230656258,-480.0,0.00041095,120]
[381477339,1756230656268,-480.0,0.00041095,120]
[381477341,1756230656278,-613.78,0.00041095,120]
[381477343,1756230656291,-525.21,0.00041095,120]
[381477345,1756230656300,-741.32,0.00041095,120]
[381477347,1756230656310,-1454.01,0.00041095,120]
[381477349,1756230656319,-480.0,0.00041095,120]
[381477351,1756230656329,-480.0,0.00041095,120]
[381477353,1756230656339,-500.0,0.00041095,120]
[381477355,1756230656349,-480.0,0.00041095,120]
[381477357,1756230656359,-1451.37,0.00041095,120]
[381477359,1756230656368,-480.0,0.00041095,120]
[381477361,1756230656378,-480.97138187,0.00041095,120]
[381477363,1756230656388,-480.0,0.00041095,120]
[381477365,1756230656398,-611.5,0.00041095,120]
[381477367,1756230656408,-481.0298068,0.00041095,120]
[381477369,1756230656421,-480.0,0.00041095,120]
[381477372,1756230656432,-480.0,0.00041095,120]
[381477374,1756230656443,-782.98,0.00041095,120]
[381477376,1756230656452,-480.0,0.00041095,120]
[381477378,1756230656461,-643.45,0.00041095,120]
[381477380,1756230656471,-518.48,0.00041095,120]
[381477382,1756230656481,-1381.92,0.00041095,120]
[381477384,1756230656490,-480.0,0.00041095,120]
[381477386,1756230656500,-480.0,0.00041095,120]
[381477388,1756230656509,-8010.13,0.00041095,120]
[381477390,1756230656519,-480.0,0.00041095,120]
[381477392,1756230656528,-480.0,0.00041095,120]
[381477394,1756230656538,-1502.4,0.00041095,120]
[381477396,1756230656548,-513.18,0.00041095,120]
[381477398,1756230656557,-539.02,0.00041095,120]
[381477400,1756230656568,-480.0,0.00041095,120]
[381477402,1756230656577,-480.0,0.00041095,120]
[381477404,1756230656587,-480.0,0.00041095,120]
[381477406,1756230656597,-726.4,0.00041095,120]
[381477408,1756230656606,-189.0602701,0.00041095,120]
[381477410,1756230656615,-480.0,0.00041095,120]
[381477412,1756230656624,-480.0,0.00041095,120]
[381477414,1756230656634,-480.0,0.00041095,120]
[381477416,1756230656648,-480.0,0.00041095,120]
[381477419,1756230656659,-571.84,0.00041095,120]
[381477421,1756230656670,-480.0,0.00041095,120]
[381477422,1756230656680,-480.0,0.00041095,120]
[381477425,1756230656691,-480.0,0.00041095,120]
[381477427,1756230656700,-480.0,0.00041095,120]
[381477429,1756230656709,-480.0,0.00041095,120]
[381477431,1756230656720,-517.45,0.00041095,120]
[381477433,1756230656730,-480.0,0.00041095,120]
[381477435,1756230656739,-480.0,0.00041095,120]
[381477437,1756230656749,-480.0,0.00041095,120]
[381477439,1756230656758,-767.5,0.00041095,120]
[381477441,1756230656768,-480.0,0.00041095,120]
[381477443,1756230656777,-480.0,0.00041095,120]
[381477445,1756230656786,-1039.04,0.00041095,30]
[381477447,1756230656795,-480.0,0.00041095,120]
[381477449,1756230656804,-903.8,0.00041095,120]
[381477451,1756230656814,-480.0,0.00041095,120]
[381477453,1756230656823,-511.23,0.00041095,120]
[381477455,1756230656833,-2122.64,0.00041095,120]
[381477457,1756230656842,-480.0,0.00041095,120]
[381477459,1756230656852,-480.0,0.00041095,120]
[381477461,1756230656861,-797.69,0.00041095,120]
[381477463,1756230656871,-480.0,0.00041095,120]
[381477465,1756230656880,-480.84154875,0.00041095,120]
[381477467,1756230656889,-558.57,0.00041095,120]
[381477469,1756230656898,-895.64,0.00041095,120]
[381477471,1756230656908,-480.0,0.00041095,120]
[381477473,1756230656918,-480.0,0.00041095,120]
[381477475,1756230656927,-480.0,0.00041095,120]
[381477477,1756230656937,-480.0,0.00041095,120]
[381477479,1756230656946,-4699.17,0.00041095,120]
[381477481,1756230656956,-775.83,0.00041095,120]
[381477483,1756230656965,-540.66,0.00041095,120]
[381477485,1756230656975,-359.40965329,0.00041095,120]
[381477487,1756230656984,-500.0,0.00041095,120]
[381477489,1756230656993,-494.53,0.00041095,120]
[381477491,1756230657003,-500.0,0.00041095,120]
[381477494,1756230657012,-500.0,0.00041095,120]
[381477496,1756230657022,-1819.49,0.00041095,120]
[381477498,1756230657031,-500.0,0.00041095,120]
[381477500,1756230657040,-714.62,0.00041095,120]
[381477502,1756230657051,-500.0,0.00041095,120]
[381477504,1756230657060,-500.0,0.00041095,120]
[381477506,1756230657069,-2006.96,0.00041095,120]
[381477508,1756230657078,-500.0,0.00041095,120]
[381477510,1756230657089,-500.0,0.00041095,120]
[381477512,1756230657098,-500.0,0.00041095,120]
[381477514,1756230657107,-500.0,0.00041095,120]
[381477516,1756230657116,-500.0,0.00041095,120]
[381477518,1756230657126,-500.0,0.00041095,120]
[381477520,1756230657135,-523.19,0.00041095,120]
[381477522,1756230657144,-457.7551414,0.00041095,120]
[381477524,1756230657155,-625.73,0.00041095,120]
[381477526,1756230657164,-480.0,0.00041095,120]
[381477528,1756230657173,-1390.37,0.00041095,120]
[381477530,1756230657182,-480.0,0.00041095,120]
[381477532,1756230657191,-586.08,0.00041095,120]
[381477534,1756230657200,-726.56,0.00041095,60]
[381477536,1756230657209,-480.0,0.00041095,120]
[381477538,1756230657219,-480.0,0.00041095,120]
[381477540,1756230657228,-277.10090595,0.00041095,120]
[381477614,1756230657896,-225.87909405,0.00041095,120]
[381477616,1756230657906,-480.0,0.00041095,120]
[381477618,1756230657915,-516.29,0.00041095,120]
[381477620,1756230657924,-201.22237276,0.00041095,120]
[381477623,1756230657937,-250.52584497,0.00041095,120]
[381477704,1756230658731,107.7879262,0.00028,7]
[381477707,1756230658752,892.2120738,0.00028,7]
[381477965,1756230661614,1000.0,0.00028,7]
[381483541,1756230724343,983.8213696,0.000199,2]
[381483542,1756230724636,192.15347904,0.00023353,2]
[381483543,1756230724664,791.66789051,0.00023353,2]
[381483553,1756230725052,983.82136955,0.00026806,6]
[381483559,1756230725096,983.82136955,0.00021627,2]
[381483570,1756230725203,983.82136955,0.0002508,2]
[381485356,1756230743508,312.03953109,0.0002727,2]
[381485737,1756230747682,352.428808,0.00013699,2]
[381485792,1756230748212,352.428808,0.00020187,2]
[381485836,1756230748640,352.428808,0.00026676,2]
[381486084,1756230751300,4887.55204575,0.0002727,2]
[381486088,1756230751322,112.44795425,0.0002727,2]
[381487177,1756230762460,271.271,0.00031998,60]
[381487587,1756230767017,734.39858517,0.0002727,2]
[381490037,1756230793300,196.3247725,0.00024998,2]
[381492749,1756230890815,922.36040887,0.000199,2]
[381492750,1756230890924,922.36040859,0.00023353,2]
[381492751,1756230891643,922.36040859,0.00021627,2]
[381492752,1756230891734,922.36040859,0.0002508,2]
[381492753,1756231020912,-319.68584663,0.0002844,2]
[381492754,1756231020930,-319.68584663,0.00028533,10]
[381492755,1756231020941,-360.62830674,0.00028533,10]
[381492756,1756231057363,-160.0,0.00029,10]
[381492757,1756231057401,-168.53752178,0.00029888,102]
[381492758,1756231057435,-160.0,0.00029984,2]
[381492759,1756231057483,-376.39720582,0.00029988,2]
[381492760,1756231057518,-216.09257821,0.00029988,2]
[381492761,1756231057552,-160.0,0.00029988,2]
[381492762,1756231057587,-160.0,0.00029988,2]
[381492763,1756231057610,-160.0,0.000307,2]
[381492764,1756231057624,-168.53752178,0.000307,2]
[381492765,1756231057642,-160.0,0.000307,2]
[381492766,1756231057673,-376.39720582,0.000307,2]
[381492767,1756231057688,-216.09257821,0.000307,2]
[381492768,1756231057708,-160.0,0.000307,2]
[381492769,1756231058045,-160.0,0.000307,2]
[381492770,1756231058088,-197.94538838,0.000307,2]
[381492771,1756231058739,839.11710728,0.000199,2]
[381492772,1756231058947,839.11710719,0.00021627,2]
[381492773,1756231059102,839.11710719,0.00026806,6]
[381492774,1756231059188,839.11710719,0.00023353,2]
[381492775,1756231059597,839.11710719,0.0002508,2]
[381492776,1756231063214,228.0,0.000271,7]
[381492777,1756231204552,500.0,0.00025205,2]
[381492778,1756231204906,500.0,0.00025205,2]
[381492779,1756231205257,377.41394495,0.00025205,2]
[381492780,1756231218410,509.56888437,0.000271,2]
[381492781,1756231218436,4490.43111563,0.000271,2]
[381492782,1756231219673,-183.23645434,0.00027217,2]
[381492783,1756231219702,-106.18689279,0.00027217,2]
[381492784,1756231224168,-77.04956155,0.00027217,2]
[381492785,1756231227345,843.8513402,0.000199,2]
[381492786,1756231227385,843.85134009,0.00026806,6]
[381492787,1756231227423,843.85134009,0.00023353,2]
[381492788,1756231227527,843.85134009,0.00021627,2]
[381492789,1756231227838,843.85134009,0.0002508,2]
[381492790,1756231260263,209.89621954,0.00025205,2]
[381492791,1756231303792,1080.42596427,0.000262,14]
[381492792,1756231303822,924.57403573,0.000262,14]
[381492793,1756231400294,746.5533565,0.000199,2]
[381492794,1756231400358,746.55335622,0.00026806,6]
[381492795,1756231400501,746.55335622,0.00021627,2]
[381492796,1756231400719,746.55335622,0.0002508,2]
[381492797,1756231400915,746.55335622,0.00023353,2]
[381492798,1756231569706,740.645549,0.000199,2]
[381492799,1756231569813,740.64554896,0.00021627,2]
[381492800,1756231570115,740.64554896,0.0002508,2]
[381492801,1756231570227,740.64554896,0.00026806,6]
[381492802,1756231570568,740.64554896,0.00023353,2]
[381492803,1756231593448,366.458196,0.00025778,2]
[381492804,1756231593781,366.458196,0.00026044,2]
[381492805,1756231596743,-168.51794038,0.00027677,2]
[381492806,1756231601094,-13.19993262,0.00027677,2]
[381492807,1756231652681,-205.11236909,0.000277,2]
[381492808,1756231659101,-336.00123972,0.000277,2]
[381492811,1756231662430,-199.0,0.000277,2]
[381492812,1756231664048,-300.64593952,0.000277,2]
[381492813,1756231666281,-325.61060851,0.000277,2]
[381492814,1756231669161,-305.43815264,0.000277,2]
[381492815,1756231671926,-399.42199395,0.000277,2]
[381492816,1756231675830,-363.85923096,0.000277,2]
[381492817,1756231736767,730.07117594,0.000199,2]
[381492818,1756231737008,730.07117585,0.00023353,2]
[381492819,1756231737165,730.07117585,0.00021627,2]
[381492820,1756231737510,730.07117585,0.0002508,2]
[381492821,1756231744484,2000.0,0.000253,2]
[381492822,1756231744740,286.77912298,0.00026396,2]
[381492823,1756231753143,-478.41933811,0.00028192,2]
[381492824,1756231753167,-968.57673069,0.00028217,2]
[381492826,1756231765762,128.71643141,0.00013699,2]
[381492827,1756231765790,178.89559359,0.00013699,2]
[381492828,1756231765967,307.612025,0.00020187,2]
[381492829,1756231766371,307.612025,0.00026676,2]
[381492830,1756231770115,564.91046561,0.000277,2]
[381492882,1756231832025,-730.07117585,0.00028533,10]
[381492884,1756231832035,-177.20686803,0.00028941,2]
[381492886,1756231832045,-160.0,0.00029042,2]
[381492888,1756231832055,-1000.0,0.00029142,30]
[381492890,1756231832065,-232.53539143,0.00029454,2]
[381492892,1756231832074,-160.0,0.00029454,2]
[381492894,1756231832083,-1892.07763629,0.00029505,2]
[381492896,1756231832094,-21.59971613,0.00029505,2]